fUST/lending_fUST_20251001
["ID","MTS","AMOUNT","RATE_DAILY","PERIOD"]
[388682756,1759318241058,-980.68,0.00019452,2]
[388682758,1759318241067,-500.0,0.00019452,2]
[388682760,1759318241076,-620.33,0.00019452,2]
[388682762,1759318241086,-603.46,0.00019452,2]
[388682764,1759318241096,-801.96,0.00019452,2]
[388682766,1759318241105,-859.92,0.00019452,2]
[388682768,1759318241114,-500.0,0.00019452,2]
[388682770,1759318241124,-500.0,0.00019452,2]
[388682772,1759318241133,-500.0,0.00019452,2]
[388682774,1759318241142,-2029.25,0.00019452,2]
[388682776,1759318241151,-620.7859093,0.00019452,2]
[388682778,1759318241161,-907.05,0.00019452,2]
[388682780,1759318241170,-500.0,0.00019452,2]
[388682782,1759318241179,-1464.95,0.00019452,2]
[388682784,1759318241188,-500.0,0.00019452,2]
[388682786,1759318241197,-728.64,0.00019452,2]
[388682788,1759318241207,-973.33,0.00019452,2]
[388682790,1759318241216,-500.0,0.00019452,2]
[388682792,1759318241226,-500.0,0.00019452,2]
[388682794,1759318241235,-500.0,0.00019452,2]
[388682796,1759318241244,-526.17,0.00019452,2]
[388682798,1759318241252,-500.0,0.00019452,2]
[388682800,1759318241262,-500.0,0.00019452,2]
[388682802,1759318241271,-552.19,0.00019452,2]
[388682804,1759318241280,-695.19,0.00019452,2]
[388682806,1759318241289,-500.0,0.00019452,2]
[388682808,1759318241298,-527.73,0.00019452,2]
[388682810,1759318241307,-500.0,0.00019452,2]
[388682812,1759318241317,-500.0,0.00019452,2]
[388682814,1759318241326,-3054.62,0.00019452,2]
[388682816,1759318241335,-500.0,0.00019452,2]
[388682818,1759318241344,-1313.94,0.00019452,2]
[388682820,1759318241353,-651.89,0.00019452,2]
[388682822,1759318241362,-580.86,0.00019452,2]
[388682824,1759318241371,-500.0,0.00019452,2]
[388682826,1759318241380,-500.0,0.00019452,2]
[388682828,1759318241389,-500.0,0.00019452,2]
[388682830,1759318241398,-500.0,0.00019452,2]
[388682832,1759318241408,-500.0,0.00019452,2]
[388682834,1759318241417,-500.0,0.00019452,2]
[388682836,1759318241427,-707.51,0.00019452,2]
[388682838,1759318241437,-500.0,0.00019452,2]
[388682840,1759318241448,-500.0,0.00019452,2]
[388682842,1759318241458,-612.1,0.00019452,2]
[388682843,1759318241466,-500.0,0.00019452,2]
[388682846,1759318241476,-500.0,0.00019452,2]
[388682848,1759318241485,-500.0,0.00019452,2]
[388682849,1759318241495,-500.0,0.00019452,2]
[388682851,1759318241504,-500.0,0.00019452,2]
[388682853,1759318241513,-7937.12,0.00019452,2]
[388682855,1759318241523,-1388.47,0.00019452,2]
[388682857,1759318241532,-500.0,0.00019452,2]
[388682859,1759318241541,-1282.59,0.00019452,2]
[388682861,1759318241551,-500.0,0.00019452,2]
[388682863,1759318241560,-500.0,0.00019452,2]
[388682865,1759318241570,-2401.16,0.00019452,2]
[388682867,1759318241579,-735.44,0.00019452,2]
[388682869,1759318241588,-528.59,0.00019452,2]
[388682871,1759318241597,-637.19,0.00019452,2]
[388682873,1759318241607,-927.17,0.00019452,2]
[388682875,1759318241616,-613.98,0.00019452,2]
[388682877,1759318241627,-1079.17,0.00019452,2]
[388682879,1759318241636,-1330.71,0.00019452,2]
[388682881,1759318241645,-500.0,0.00019452,2]
[388682883,1759318241654,-1079.99,0.00019452,2]
[388682885,1759318241664,-500.0,0.00019452,2]
[388682887,1759318241673,-981.13,0.00019452,2]
[388682889,1759318241683,-3125.94,0.00019452,2]
[388682891,1759318241692,-1202.54,0.00019452,2]
[388682893,1759318241701,-1136.69,0.00019452,2]
[388682895,1759318241711,-979.48,0.00019452,2]
[388682897,1759318241720,-1206.08,0.00019452,2]
[388682899,1759318241729,-946.44,0.00019452,2]
[388682901,1759318241739,-1246.19,0.00019452,2]
[388682903,1759318241748,-500.0,0.00019452,2]
[388682905,1759318241761,-500.0,0.00019452,2]
[388682907,1759318241770,-404.03539874,0.00019452,2]
[388682909,1759318241780,-1268.62,0.00019452,2]
[388682911,1759318241789,-1471.99,0.00019452,2]
[388682913,1759318241800,-562.71,0.00019452,2]
[388682915,1759318241809,-801.69,0.00019452,2]
[388682917,1759318241818,-500.0,0.00019452,2]
[388682919,1759318241829,-968.16,0.00019452,2]
[388682921,1759318241840,-500.0,0.00019452,2]
[388682923,1759318241850,-500.0,0.00019452,2]
[388682925,1759318241859,-744.98,0.00019452,2]
[388682927,1759318241868,-685.27,0.00019452,2]
[388682929,1759318241878,-500.0,0.00019452,2]
[388682931,1759318241890,-500.0,0.00019452,2]
[388682933,1759318241899,-2109.0,0.00019452,2]
[388682935,1759318241909,-500.0,0.00019452,2]
[388682937,1759318241919,-500.0,0.00019452,2]
[388682939,1759318241928,-500.0,0.00019452,2]
[388682941,1759318241937,-1856.68,0.00019452,2]
[388682943,1759318241947,-1093.54,0.00019452,2]
[388682945,1759318241956,-500.0,0.00019452,2]
[388682947,1759318241965,-500.0,0.00019452,2]
[388682949,1759318241975,-848.05,0.00019452,2]
[388682951,1759318241983,-828.91,0.00019452,2]
[388682953,1759318241993,-1144.25,0.00019452,2]
[388682955,1759318242004,-500.0,0.00019452,2]
[388682957,1759318242013,-1087.57,0.00019452,2]
[388682959,1759318242022,-500.0,0.00019452,2]
[388682961,1759318242033,-500.0,0.00019452,2]
[388682963,1759318242043,-1113.87,0.00019452,2]
[388682965,1759318242051,-599.23,0.00019452,2]
[388682967,1759318242061,-500.0,0.00019452,2]
[388682969,1759318242070,-1117.57,0.00019452,2]
[388682971,1759318242079,-500.0,0.00019452,2]
[388682973,1759318242089,-525.44,0.00019452,2]
[388682975,1759318242098,-1240.3,0.00019452,2]
[388682976,1759318242107,-2228.95,0.00019452,2]
[388682978,1759318242117,-500.0,0.00019452,2]
[388682980,1759318242126,-500.0,0.00019452,2]
[388682982,1759318242137,-809.47,0.00019452,2]
[388682984,1759318242147,-916.97,0.00019452,2]
[388682986,1759318242156,-500.0,0.00019452,2]
[388682988,1759318242166,-3019.53,0.00019452,2]
[388682991,1759318242175,-500.0,0.00019452,2]
[388682992,1759318242185,-1262.45,0.00019452,2]
[388682994,1759318242194,-706.38,0.00019452,2]
[388682997,1759318242204,-500.0,0.00019452,2]
[388682999,1759318242213,-500.0,0.00019452,2]
[388683000,1759318242222,-515.78,0.00019452,2]
[388683002,1759318242231,-559.18,0.00019452,2]
[388683004,1759318242241,-773.55,0.00019452,2]
[388683006,1759318242250,-1651.83,0.00019452,2]
[388683009,1759318242260,-4514.82,0.00019452,2]
[388683010,1759318242269,-500.0,0.00019452,2]
[388683012,1759318242278,-511.87,0.00019452,2]
[388683015,1759318242287,-983.43,0.00019452,2]
[388683016,1759318242296,-1490.55,0.00019452,2]
[388683018,1759318242305,-602.8,0.00019452,2]
[388683020,1759318242315,-1294.55,0.00019452,2]
[388683022,1759318242324,-500.0,0.00019452,2]
[388683024,1759318242333,-500.0,0.00019452,2]
[388683026,1759318242344,-723.5,0.00019452,2]
[388683028,1759318242353,-1566.64,0.00019452,2]
[388683030,1759318242363,-500.0,0.00019452,2]
[388683032,1759318242373,-1572.27,0.00019452,2]
[388683034,1759318242382,-1420.96,0.00019452,2]
[388683036,1759318242392,-1058.94,0.00019452,2]
[388683038,1759318242401,-2258.76,0.00019452,2]
[388683040,1759318242411,-314.40772844,0.00019452,2]
[388683042,1759318242420,-500.0,0.00019452,2]
[388683044,1759318242430,-500.0,0.00019452,2]
[388683046,1759318242440,-500.0,0.00019452,2]
[388683048,1759318242449,-2521.59,0.00019452,2]
[388683050,1759318242459,-2326.44,0.00019452,2]
[388683052,1759318242468,-500.0,0.00019473,2]
[388683054,1759318242478,-500.0,0.00019473,2]
[388683056,1759318242487,-500.0,0.00019473,2]
[388683058,1759318242497,-500.0,0.00019473,2]
[388683060,1759318242506,-500.0,0.00019473,2]
[388683063,1759318242515,-500.0,0.00019473,2]
[388683065,1759318242526,-500.0,0.00019473,2]
[388683067,1759318242536,-500.0,0.00019473,2]
[388683069,1759318242546,-500.0,0.00019473,2]
[388683088,1759318242721,-500.0,0.00019473,2]
[388683091,1759318242732,-345.50813946,0.00019473,2]
[388683093,1759318242742,-180.085758,0.00019509,7]
[388683095,1759318242751,-210.00958374,0.00019694,2]
[388683097,1759318242765,-676.36,0.00019726,2]
[388683099,1759318242774,-500.0,0.00019726,2]
[388683101,1759318242784,-500.0,0.00019726,2]
[388683102,1759318242793,-500.0,0.00019726,2]
[388683104,1759318242805,-500.0,0.00019726,2]
[388683106,1759318242815,-500.0,0.00019726,2]
[388683108,1759318242824,-500.0,0.00019726,2]
[388683110,1759318242835,-500.0,0.00019726,2]
[388683112,1759318242845,-500.0,0.00019726,2]
[388683114,1759318242854,-500.0,0.00019726,2]
[388683116,1759318242863,-500.0,0.00019726,2]
[388683118,1759318242873,-500.0,0.00019726,2]
[388683120,1759318242882,-500.0,0.00019726,2]
[388683122,1759318242891,-500.0,0.00019726,2]
[388683124,1759318242901,-500.0,0.00019726,2]
[388683126,1759318242910,-704.23,0.00019726,2]
[388683128,1759318242919,-500.0,0.00019726,2]
[388683131,1759318242928,-500.0,0.00019726,2]
[388683133,1759318242937,-645.44,0.00019726,2]
[388683135,1759318242947,-500.0,0.00019726,2]
[388683137,1759318242957,-649.02,0.00019726,2]
[388683139,1759318242966,-500.0,0.00019726,2]
[388683141,1759318242975,-591.33,0.00019726,2]
[388683143,1759318242985,-500.0,0.00019726,2]
[388683145,1759318242994,-246.97658093,0.00019726,2]
[388683147,1759318243003,-500.0,0.00019726,2]
[388683149,1759318243012,-672.16,0.00019726,2]
[388683151,1759318243021,-523.59,0.00019726,2]
[388683153,1759318243031,-567.39,0.00019726,2]
[388683155,1759318243040,-1669.71,0.00019726,2]
[388683157,1759318243050,-500.0,0.00019726,2]
[388683159,1759318243060,-662.22,0.00019726,2]
[388683161,1759318243070,-500.0,0.00019726,2]
[388683163,1759318243079,-500.0,0.00019726,2]
[388683165,1759318243089,-619.42,0.00019726,2]
[388683167,1759318243100,-988.56,0.00019726,2]
[388683169,1759318243110,-669.85,0.00019726,2]
[388683171,1759318243120,-614.52,0.00019726,2]
[388683173,1759318243130,-500.0,0.00019726,2]
[388683175,1759318243139,-1684.4,0.00019726,2]
[388683177,1759318243151,-980.68,0.00019726,2]
[388683179,1759318243161,-500.0,0.00019726,2]
[388683181,1759318243170,-620.33,0.00019726,2]
[388683183,1759318243181,-603.46,0.00019726,2]
[388683185,1759318243190,-801.96,0.00019726,2]
[388683187,1759318243199,-859.92,0.00019726,2]
[388683189,1759318243208,-500.0,0.00019726,2]
[388683191,1759318243217,-500.0,0.00019726,2]
[388683193,1759318243226,-2029.25,0.00019726,2]
[388683195,1759318243235,-907.05,0.00019726,2]
[388683197,1759318243245,-500.0,0.00019726,2]
[388683199,1759318243255,-1464.95,0.00019726,2]
[388683201,1759318243264,-480.0,0.00019726,2]
[388683203,1759318243274,-728.64,0.00019726,2]
[388683205,1759318243283,-973.33,0.00019726,2]
[388683207,1759318243292,-500.0,0.00019726,2]
[388683209,1759318243302,-500.0,0.00019726,2]
[388683211,1759318243311,-500.0,0.00019726,2]
[388683213,1759318243320,-526.17,0.00019726,2]
[388683215,1759318243329,-500.0,0.00019726,2]
[388683217,1759318243338,-552.19,0.00019726,2]
[388683219,1759318243347,-695.19,0.00019726,2]
[388683221,1759318243357,-500.0,0.00019726,2]
[388683223,1759318243367,-527.73,0.00019726,2]
[388683225,1759318243377,-3054.62,0.00019726,2]
[388683227,1759318243386,-516.40099664,0.00019726,2]
[388683229,1759318243396,-1313.94,0.00019726,2]
[388683231,1759318243406,-651.89,0.00019726,2]
[388683233,1759318243416,-580.86,0.00019726,2]
[388683235,1759318243426,-500.0,0.00019726,2]
[388683237,1759318243439,-500.0,0.00019726,2]
[388683239,1759318243449,-500.0,0.00019726,2]
[388683241,1759318243458,-500.0,0.00019726,2]
[388683243,1759318243468,-500.0,0.00019726,2]
[388683245,1759318243477,-707.51,0.00019726,2]
[388683247,1759318243487,-500.0,0.00019726,2]
[388683249,1759318243496,-500.0,0.00019726,2]
[388683250,1759318243506,-612.1,0.00019726,2]
[388683251,1759318243515,-500.0,0.00019726,2]
[388683252,1759318243525,-500.0,0.00019726,2]
[388683253,1759318243534,-500.0,0.00019726,2]
[388683254,1759318243543,-500.0,0.00019726,2]
[388683255,1759318243552,-7937.12,0.00019726,2]
[388683256,1759318243561,-1388.47,0.00019726,2]
[388683257,1759318243570,-500.0,0.00019726,2]
[388683258,1759318243579,-1282.59,0.00019726,2]
[388683259,1759318243588,-500.0,0.00019726,2]
[388683260,1759318243598,-500.0,0.00019726,2]
[388683261,1759318243607,-2401.16,0.00019726,2]
[388683262,1759318243616,-735.44,0.00019726,2]
[388683263,1759318243625,-528.59,0.00019726,2]
[388683264,1759318243634,-637.19,0.00019726,2]
[388683265,1759318243642,-927.17,0.00019726,2]
[388683266,1759318243651,-613.98,0.00019726,2]
[388683267,1759318243660,-1079.17,0.00019726,2]
[388683268,1759318243669,-1330.71,0.00019726,2]
[388683269,1759318243678,-500.0,0.00019726,2]
[388683270,1759318243687,-1079.99,0.00019726,2]
[388683271,1759318243696,-500.0,0.00019726,2]
[388683272,1759318243705,-981.13,0.00019726,2]
[388683273,1759318243714,-3125.94,0.00019726,2]
[388683274,1759318243723,-1202.54,0.00019726,2]
[388683275,1759318243732,-1136.69,0.00019726,2]
[388683276,1759318243741,-979.48,0.00019726,2]
[388683277,1759318243750,-1206.08,0.00019726,2]
[388683278,1759318243763,-946.44,0.00019726,2]
[388683280,1759318243772,-1246.19,0.00019726,2]
[388683281,1759318243781,-498.91921076,0.00019726,2]
[388683282,1759318243791,-500.0,0.00019726,2]
[388683283,1759318243800,-1268.62,0.00019726,2]
[388683285,1759318243809,-1471.99,0.00019726,2]
[388683287,1759318243818,-562.71,0.00019726,2]
[388683288,1759318243828,-801.69,0.00019726,2]
[388683290,1759318243839,-500.0,0.00019726,2]
[388683292,1759318243848,-968.16,0.00019726,2]
[388683294,1759318243858,-744.98,0.00019726,2]
[388683296,1759318243867,-685.27,0.00019726,2]
[388683298,1759318243877,-500.0,0.00019726,2]
[388683300,1759318243885,-500.0,0.00019726,2]
[388683302,1759318243895,-2109.0,0.00019726,2]
[388683304,1759318243904,-500.0,0.00019726,2]
[388683307,1759318243913,-500.0,0.00019726,2]
[388683309,1759318243922,-500.0,0.00019726,2]
[388683311,1759318243931,-1856.68,0.00019726,2]
[388683313,1759318243940,-1093.54,0.00019726,2]
[388683315,1759318243949,-500.0,0.00019726,2]
[388683317,1759318243959,-500.0,0.00019726,2]
[388683319,1759318243968,-848.05,0.00019726,2]
[388683321,1759318243978,-828.91,0.00019726,2]
[388683323,1759318243987,-1144.25,0.00019726,2]
[388683325,1759318243996,-500.0,0.00019726,2]
[388683327,1759318244006,-1087.57,0.00019726,2]
[388683329,1759318244015,-500.0,0.00019726,2]
[388683331,1759318244024,-1113.87,0.00019726,2]
[388683333,1759318244034,-599.23,0.00019726,2]
[388683335,1759318244043,-500.0,0.00019726,2]
[388683337,1759318244053,-1117.57,0.00019726,2]
[388683339,1759318244062,-500.0,0.00019726,2]
[388683340,1759318244071,-525.44,0.00019726,2]
[388683343,1759318244080,-1240.3,0.00019726,2]
[388683345,1759318244090,-2228.95,0.00019726,2]
[388683346,1759318244100,-500.0,0.00019726,2]
[388683349,1759318244110,-500.0,0.00019726,2]
[388683350,1759318244119,-809.47,0.00019726,2]
[388683353,1759318244129,-916.97,0.00019726,2]
[388683354,1759318244138,-500.0,0.00019726,2]
[388683356,1759318244147,-3019.53,0.00019726,2]
[388683358,1759318244156,-500.0,0.00019726,2]
[388683360,1759318244166,-1262.45,0.00019726,2]
[388683362,1759318244175,-706.38,0.00019726,2]
[388683364,1759318244184,-500.0,0.00019726,2]
[388683366,1759318244193,-515.78,0.00019726,2]
[388683368,1759318244202,-559.18,0.00019726,2]
[388683370,1759318244212,-773.55,0.00019726,2]
[388683372,1759318244221,-1651.83,0.00019726,2]
[388683374,1759318244231,-4514.82,0.00019726,2]
[388683376,1759318244241,-500.0,0.00019726,2]
[388683378,1759318244250,-511.87,0.00019726,2]
[388683380,1759318244259,-983.43,0.00019726,2]
[388683382,1759318244269,-1490.55,0.00019726,2]
[388683384,1759318244278,-602.8,0.00019726,2]
[388683386,1759318244287,-1294.55,0.00019726,2]
[388683388,1759318244296,-723.5,0.00019726,2]
[388683390,1759318244306,-1566.64,0.00019726,2]
[388683392,1759318244315,-1572.27,0.00019726,2]
[388683394,1759318244324,-1420.96,0.00019726,2]
[388683396,1759318244333,-1058.94,0.00019726,2]
[388683398,1759318244343,-2258.76,0.00019726,2]
[388683400,1759318244352,-500.0,0.00019726,2]
[388683402,1759318244362,-473.33838339,0.00019726,2]
[388683404,1759318244375,-2521.59,0.00019726,2]
[388683406,1759318244385,-2326.44,0.00019726,2]
[388683408,1759318244395,-151.0,0.00019777,2]
[388683410,1759318244406,-246.85646438,0.00019845,2]
[388683412,1759318244419,-180.085758,0.00019942,7]
[388683414,1759318244429,-504.39253887,0.00019973,2]
[388683416,1759318244438,-500.0,0.00019973,2]
[388683418,1759318244448,-500.0,0.00019973,2]
[388683420,1759318244457,-500.0,0.00019973,2]
[388683422,1759318244466,-500.0,0.00019973,2]
[388683424,1759318244476,-500.0,0.00019973,2]
[388683426,1759318244485,-500.0,0.00019973,2]
[388683428,1759318244495,-500.0,0.00019973,2]
[388683430,1759318244504,-500.0,0.00019973,2]
[388683432,1759318244513,-500.0,0.00019973,2]
[388683434,1759318244522,-500.0,0.00019973,2]
[388683436,1759318244537,-500.0,0.00019973,2]
[388683438,1759318244547,-55484.63685925,0.0001999,2]
[388683440,1759318244556,-4000.0,0.0002,4]
[388683442,1759318244565,-676.36,0.0002,2]
[388683444,1759318244575,-500.0,0.0002,2]
[388683446,1759318244584,-500.0,0.0002,2]
[388683448,1759318244594,-500.0,0.0002,2]
[388683450,1759318244604,-500.0,0.0002,2]
[388683452,1759318244612,-500.0,0.0002,2]
[388683454,1759318244622,-500.0,0.0002,2]
[388683456,1759318244631,-500.0,0.0002,2]
[388683458,1759318244639,-500.0,0.0002,2]
[388683460,1759318244649,-500.0,0.0002,2]
[388683462,1759318244659,-500.0,0.0002,2]
[388683464,1759318244668,-500.0,0.0002,2]
[388683466,1759318244677,-500.0,0.0002,2]
[388683468,1759318244686,-151.0,0.0002,2]
[388683470,1759318244695,-458.49835277,0.0002,2]
[388683472,1759318244704,-500.0,0.0002,2]
[388683474,1759318244714,-704.23,0.0002,2]
[388683476,1759318244723,-500.0,0.0002,2]
[388683478,1759318244733,-500.0,0.0002,2]
[388683480,1759318244742,-645.44,0.0002,2]
[388683482,1759318244752,-500.0,0.0002,2]
[388683484,1759318244764,-500.0,0.0002,2]
[388683486,1759318244773,-180.085758,0.0002,2]
[388683488,1759318244782,-180.085758,0.0002,4]
[388683490,1759318244791,-151.0,0.0002,2]
[388683492,1759318244801,-591.33,0.0002,2]
[388683494,1759318244810,-152.729553,0.0002,2]
[388683496,1759318244819,-500.0,0.0002,2]
[388683498,1759318244828,-500.0,0.0002,2]
[388683500,1759318244838,-672.16,0.0002,2]
[388683502,1759318244847,-523.59,0.0002,2]
[388683504,1759318244856,-567.39,0.0002,2]
[388683506,1759318244865,-1669.71,0.0002,2]
[388683508,1759318244874,-500.0,0.0002,2]
[388683510,1759318244884,-662.22,0.0002,2]
[388683512,1759318244893,-151.0,0.0002,2]
[388683514,1759318244902,-500.0,0.0002,2]
[388683516,1759318244911,-155.558288,0.0002,2]
[388683518,1759318244920,-151.0,0.0002,2]
[388683520,1759318244929,-500.0,0.0002,2]
[388683522,1759318244939,-619.42,0.0002,2]
[388683523,1759318244948,-988.56,0.0002,2]
[388683525,1759318244957,-669.85,0.0002,2]
[388683527,1759318244966,-614.52,0.0002,2]
[388683529,1759318244975,-500.0,0.0002,2]
[388683531,1759318244985,-1684.4,0.0002,2]
[388683533,1759318244994,-152.25779,0.0002,2]
[388683535,1759318245004,-980.68,0.0002,2]
[388683537,1759318245014,-500.0,0.0002,2]
[388683539,1759318245022,-620.33,0.0002,2]
[388683545,1759318245069,-603.46,0.0002,2]
[388683547,1759318245079,-801.96,0.0002,2]
[388683549,1759318245088,-859.92,0.0002,2]
[388683551,1759318245097,-500.0,0.0002,2]
[388683553,1759318245106,-500.0,0.0002,2]
[388683555,1759318245115,-2029.25,0.0002,2]
[388683557,1759318245124,-151.0,0.0002,2]
[388683559,1759318245133,-907.05,0.0002,2]
[388683561,1759318245143,-500.0,0.0002,2]
[388683563,1759318245152,-153.056476,0.0002,2]
[388683565,1759318245162,-1464.95,0.0002,2]
[388683567,1759318245172,-728.64,0.0002,2]
[388683569,1759318245181,-973.33,0.0002,2]
[388683571,1759318245190,-151.0,0.0002,2]
[388683573,1759318245199,-500.0,0.0002,2]
[388683575,1759318245208,-500.0,0.0002,2]
[388683577,1759318245216,-500.0,0.0002,2]
[388683579,1759318245226,-526.17,0.0002,2]
[388683581,1759318245235,-151.0,0.0002,2]
[388683583,1759318245243,-500.0,0.0002,2]
[388683585,1759318245252,-552.19,0.0002,2]
[388683587,1759318245261,-695.19,0.0002,2]
[388683589,1759318245270,-160.500122,0.0002,2]
[388683591,1759318245280,-500.0,0.0002,2]
[388683593,1759318245289,-527.73,0.0002,2]
[388683595,1759318245298,-3054.62,0.0002,2]
[388683597,1759318245307,-151.0,0.0002,2]
[388683599,1759318245316,-1313.94,0.0002,2]
[388683601,1759318245325,-651.89,0.0002,2]
[388683603,1759318245334,-151.0,0.0002,2]
[388683605,1759318245343,-154.243573,0.0002,2]
[388683607,1759318245352,-580.86,0.0002,2]
[388683609,1759318245361,-500.0,0.0002,2]
[388683611,1759318245370,-500.0,0.0002,2]
[388683613,1759318245379,-500.0,0.0002,2]
[388683615,1759318245389,-500.0,0.0002,2]
[388683617,1759318245398,-151.696,0.0002,2]
[388683619,1759318245407,-253.23238886,0.0002,2]
[388683620,1759318245416,-707.51,0.0002,2]
[388683622,1759318245425,-500.0,0.0002,2]
[388683624,1759318245434,-500.0,0.0002,2]
[388683626,1759318245443,-612.1,0.0002,2]
[388683628,1759318245451,-500.0,0.0002,2]
[388683630,1759318245460,-500.0,0.0002,2]
[388683632,1759318245470,-500.0,0.0002,2]
[388683634,1759318245479,-500.0,0.0002,2]
[388683636,1759318245488,-7937.12,0.0002,2]
[388683638,1759318245497,-1388.47,0.0002,2]
[388683640,1759318245506,-500.0,0.0002,2]
[388683642,1759318245517,-1282.59,0.0002,2]
[388683644,1759318245528,-500.0,0.0002,2]
[388683646,1759318245537,-500.0,0.0002,2]
[388683648,1759318245547,-2401.16,0.0002,2]
[388683650,1759318245556,-735.44,0.0002,2]
[388683652,1759318245565,-528.59,0.0002,2]
[388683654,1759318245574,-637.19,0.0002,2]
[388683656,1759318245583,-927.17,0.0002,2]
[388683658,1759318245593,-613.98,0.0002,2]
[388683660,1759318245602,-1330.71,0.0002,2]
[388683662,1759318245612,-1079.17,0.0002,2]
[388683664,1759318245621,-500.0,0.0002,2]
[388683666,1759318245629,-1079.99,0.0002,2]
[388683668,1759318245638,-500.0,0.0002,2]
[388683670,1759318245647,-981.13,0.0002,2]
[388683672,1759318245656,-3125.94,0.0002,2]
[388683674,1759318245665,-1202.54,0.0002,2]
[388683676,1759318245674,-1136.69,0.0002,2]
[388683678,1759318245683,-979.48,0.0002,2]
[388683680,1759318245692,-1206.08,0.0002,2]
[388683682,1759318245701,-946.44,0.0002,2]
[388683684,1759318245710,-1246.19,0.0002,2]
[388683686,1759318245719,-500.0,0.0002,2]
[388683688,1759318245728,-1268.62,0.0002,2]
[388683690,1759318245737,-1471.99,0.0002,2]
[388683692,1759318245746,-562.71,0.0002,2]
[388683694,1759318245759,-801.69,0.0002,2]
[388683696,1759318245768,-177.10026579,0.0002,2]
[388683698,1759318245776,-968.16,0.0002,2]
[388683700,1759318245785,-744.98,0.0002,2]
[388683702,1759318245794,-685.27,0.0002,2]
[388683704,1759318245804,-500.0,0.0002,2]
[388683706,1759318245813,-500.0,0.0002,2]
[388683707,1759318245823,-2109.0,0.0002,2]
[388683710,1759318245833,-151.0,0.0002,2]
[388683713,1759318245843,-500.0,0.0002,2]
[388683716,1759318245853,-500.0,0.0002,2]
[388683718,1759318245861,-175.057,0.0002,2]
[388683720,1759318245870,-500.0,0.0002,2]
[388683722,1759318245879,-1856.68,0.0002,2]
[388683724,1759318245887,-1093.54,0.0002,2]
[388683726,1759318245898,-151.0,0.0002,2]
[388683728,1759318245907,-500.0,0.0002,2]
[388683731,1759318245917,-500.0,0.0002,2]
[388683734,1759318245926,-848.05,0.0002,2]
[388683737,1759318245935,-828.91,0.0002,2]
[388683740,1759318245944,-1144.25,0.0002,2]
[388683743,1759318245953,-500.0,0.0002,2]
[388683746,1759318245963,-1087.57,0.0002,2]
[388683749,1759318245971,-500.0,0.0002,2]